[Event "4th Tata Steel India Blitz Women 2022"]
[Site "Kolkota"]
[Date "2022.12.03"]
[Round "6.4"]
[White "Kulkarni Bhakti"]
[Black "Harika, Dronavalli"]
[Result "0-1"]
[ECO "B08"]
[WhiteElo "2359"]
[BlackElo "2507"]
[Annotator "TA"]
[PlyCount "194"]
[EventDate "2022.11.29"]
[EventType "tourn"]
[EventCountry "IND"]
[SourceTitle "playchess.com"]
[Source "ChessBase"]
[SourceQuality "1"]
[TimeControl "180+2"]

{[%evp 61,194,330,480,303,654,516,497,279,268,249,227,178,326,259,853,547,812,800,675,169,196,102,129,102,120,102,100,0,0,0,0,0,0,0,0,0,0,0,0,-18,0,0,0,0,0,0,0,0,0,0,0,0,0,0,0,0,0,0,0,0,0,0,0,0,0,0,0,0,0,0,0,0,0,0,0,0,0,0,0,0,0,0,0,0,0,0,0,0,0,0,0,0,0,0,0,0,0,0,0,0,0,0,0,0,0,0,0,0,0,-2023,-1862,-1702,-1608,-1589,-1532,-1535,-1517,-1474,-1353,-1189,-333,-376,-341,-1218,-274,-279,-299,-12834,-713,-1721,-1140,-1722,-1222,-29985,-1402]} 1. d4 {[%emt 0:00:02]} d6 {[%emt 0:00:01]} 2. Nf3 {[%emt 0:00:04]} g6 {[%emt 0:00:03]} 3. Nc3 {[%emt 0:00:04]} Bg7 {[%emt 0:00:04]} 4. e4 {[%emt 0:00:03]} a6 {[%emt 0:00:01]} 5. a4 {[%emt 0:00:05]} Nf6 {[%emt 0:00:02]} 6. Be2 {[%emt 0:00:02]} O-O {[%emt 0:00:14]} 7. h3 {[%emt 0:00:09]} Nc6 {[%emt 0:00:12]} 8. O-O e5 {[%emt 0:00:00]} 9. Be3 {[%emt 0:00:25]} Re8 {[%emt 0:00:00]} 10. d5 {[%emt 0:00:22]} Ne7 {[%emt 0:00:12]} 11. Nd2 {[%emt 0:00:02]} Rf8 {[%emt 0:00:03]} 12. a5 {[%emt 0:00:17]} h6 {[%emt 0:00:06]} 13. Na4 {[%emt 0:00:09]} Nh7 {[%emt 0:00:14]} 14. c4 {[%emt 0:00:03]} f5 {[%emt 0:00:01]} 15. f3 {[%emt 0:00:03]} g5 {[%emt 0:00:49]} 16. c5 {[%emt 0:00:12]} f4 {[%emt 0:00:00]} 17. Bf2 {[%emt 0:00:01]} h5 {[%emt 0:00:00]} 18. cxd6 {[%emt 0:00:05]} cxd6 {[%emt 0:00:00]} 19. Nb6 {[%emt 0:00:04]} Rb8 {[%emt 0:00:00]} 20. Rc1 {[%emt 0:00:08]} Ng6 {[%emt 0:00:21]} 21. Qb3 {[%emt 0:00:13]} Rf7 {[%emt 0:00:17]} 22. Rc2 {[%emt 0:00:33]} Bd7 {[%emt 0:00:18]} 23. Nxd7 {[%emt 0:00:03]} Rxd7 {[%emt 0:00:04]} 24. Nc4 {[%emt 0:00:09]} Bf8 {[%emt 0:00:08]} 25. Nb6 {[%emt 0:00:02]} Rc7 {[%emt 0:00:02]} 26. Rfc1 {[%emt 0:00:02]} Rxc2 {[%emt 0:00:02]} 27. Qxc2 {[%emt 0:00:01]} Nf6 {[%emt 0:00:07]} 28. Qc7 {[%emt 0:00:04]} Qe8 {[%emt 0:00:06]} 29. Be1 {[%emt 0:00:07]} g4 {[%emt 0:00:01]} 30. Bb4 {[%emt 0:00:03]} gxf3 {[%emt 0:00:02]} 31. gxf3 {[%emt 0:00:03]} (31. Bxd6 $2 fxe2 32. Qxb8 Qxb8 33. Bxb8 Bc5+ $1 {[%mdl 512]} 34. Kh2 Bf2 $19) 31... Nh4 {[%emt 0:00:21]} (31... Qd8 {keeps fighting.} 32. Qxd8 Rxd8) 32. Kh2 {[%emt 0:00:03]} (32. Bxd6 $2 {perishes.} Qg6+ 33. Kf1 Nxe4 $1 {[%mdl 512]} 34. fxe4 f3 $1 35. Bxf3 (35. Qxb8 $2 {leads to mate.} Qg2+ 36. Ke1 Qxe2#) 35... Bxd6 $19) 32... Kh8 $2 {[%emt 0:00:01]} (32... Qg6 $2 33. Rg1 $18 (33. Qxb8 $2 Qg2#) (33. Qxb8 $2 Qg2#)) (32... Qd8 33. Qxd8 Rxd8) 33. Rg1 {[%emt 0:00:03]} ({Not} 33. Bxd6 Qg6 34. Rg1 (34. Qxb8 $2 Qg2#) 34... Bxd6 35. Rxg6 Bxc7 $16) 33... Qd8 {[%emt 0:00:05]} 34. Qf7 {[%emt 0:00:02]} (34. Qxd8 $142 Rxd8 35. Be1) 34... Qe7 $18 {[%emt 0:00:03]} 35. Qxe7 $1 {[%emt 0:00:08]} Bxe7 {[%emt 0:00:01]} 36. Be1 {[%emt 0:00:04]} Nh7 {[%emt 0:00:01]} (36... Ng8 $142 37. Bf2 Nh6) 37. Bf2 $18 {[%emt 0:00:05]} Rg8 $2 {[%emt 0:00:01]} (37... Bd8 38. Nc4 Be7 39. Bxh4 Bxh4 40. Nxd6 Bg3+ 41. Kg2 Bh4) 38. Rxg8+ $18 {[%emt 0:00:02]} Kxg8 {[%emt 0:00:01]} 39. Nc8 {[%emt 0:00:01]} Ng6 {[%emt 0:00:02]} 40. Nxe7+ $2 {[%emt 0:00:03]} (40. b4) 40... Nxe7 $18 {[%emt 0:00:01]} 41. Bh4 {[%emt 0:00:02]} (41. b4 $18) 41... Kf7 {[%emt 0:00:01]} 42. Kg2 {[%emt 0:00:02]} Nf6 {[%emt 0:00:01]} 43. Kf2 {[%emt 0:00:01]} Ng6 {[%emt 0:00:01]} 44. Bxf6 {[%emt 0:00:03]} ({White should try} 44. Bg5 $16) 44... Kxf6 $11 {[%emt 0:00:01]} 45. Kg2 {[%emt 0:00:03]} Ke7 46. Bd1 {[%emt 0:00:02]} Kd8 {[%emt 0:00:01]} 47. Ba4 {[%emt 0:00:01]} Nf8 {[%emt 0:00:04]} 48. b4 {[%emt 0:00:03]} h4 {[%emt 0:00:03]} 49. Kf2 {[%emt 0:00:01]} Kc7 {[%emt 0:00:01]} 50. Ke2 {[%emt 0:00:01]} b6 {[%emt 0:00:06]} (50... Nh7 $5 {[%cal Rh7g5]}) 51. Be8 {[%emt 0:00:02]} Kb7 {[%emt 0:00:06]} 52. Bc6+ {[%emt 0:00:01]} Ka7 {[%emt 0:00:03]} 53. Be8 {[%emt 0:00:01]} Nh7 {[%emt 0:00:01]} 54. Kf2 {[%emt 0:00:03]} bxa5 {[%emt 0:00:04]} 55. bxa5 {[%emt 0:00:01]} Nf6 {[%emt 0:00:03]} 56. Bc6 {[%emt 0:00:02]} Kb8 {[%emt 0:00:01]} 57. Ke2 {[%emt 0:00:02]} Kc7 {[%emt 0:00:01]} 58. Kf2 {[%emt 0:00:01]} Nh7 {[%emt 0:00:03]} 59. Kg2 {[%emt 0:00:02]} Nf8 {[%emt 0:00:01]} 60. Be8 {[%emt 0:00:02]} Nh7 {[%emt 0:00:08]} 61. Kf2 {[%emt 0:00:02]} Nf6 {[%emt 0:00:01]} 62. Bc6 {[%emt 0:00:01]} Ng8 {[%emt 0:00:01]} 63. Kg2 {[%emt 0:00:02]} Ne7 {[%emt 0:00:01]} 64. Be8 {[%emt 0:00:01]} Nc8 {[%emt 0:00:01]} 65. Kf2 {[%emt 0:00:03]} Na7 {[%emt 0:00:02]} 66. Ke2 {[%emt 0:00:02]} Kb7 {[%emt 0:00:01]} 67. Kd3 {[%emt 0:00:02]} Nc8 {[%emt 0:00:03]} 68. Bc6+ {[%emt 0:00:01]} Kc7 {[%emt 0:00:01]} 69. Be8 {[%emt 0:00:02]} Na7 {[%emt 0:00:02]} 70. Kc4 {[%emt 0:00:02]} Nc8 {[%emt 0:00:01]} 71. Kd3 {[%emt 0:00:01]} Ne7 {[%emt 0:00:01]} 72. Ke2 {[%emt 0:00:03]} Kb7 {[%emt 0:00:00]} 73. Kd3 {[%emt 0:00:01]} Ng8 {[%emt 0:00:07]} 74. Ke2 {[%emt 0:00:02]} Nf6 {[%emt 0:00:01]} 75. Bc6+ {[%emt 0:00:01]} Kc7 {[%emt 0:00:01]} 76. Kf2 {[%emt 0:00:02]} Ng8 {[%emt 0:00:01]} 77. Ke2 {[%emt 0:00:01]} Ne7 {[%emt 0:00:01]} 78. Be8 {[%emt 0:00:01]} Kb7 {[%emt 0:00:01]} 79. Kd3 {[%emt 0:00:02]} Ng8 {[%emt 0:00:01]} 80. Ke2 {[%emt 0:00:03]} Ka7 {[%emt 0:00:01]} 81. Kf2 {[%emt 0:00:02]} Nf6 {[%emt 0:00:05]} 82. Bc6 {[%emt 0:00:01]} Kb8 {[%emt 0:00:04]} 83. Ke2 {[%emt 0:00:01]} Nh7 {[%emt 0:00:01]} 84. Kf2 {[%emt 0:00:02]} Ng5 {[%emt 0:00:00]} 85. Kg2 $2 {[%emt 0:00:02][%mdl 8192]} (85. Be8 $11) 85... Nf7 $1 $19 {[%emt 0:00:02]} 86. Kf2 {[%emt 0:00:10]} Nd8 {[%emt 0:00:00]} 87. Ba4 {[%emt 0:00:05]} Nb7 {[%emt 0:00:01]} 88. Ke2 {[%emt 0:00:02]} Nxa5 {[%emt 0:00:01]} 89. Kd3 {[%emt 0:00:01]} Kc7 {[%emt 0:00:02]} 90. Kc3 {[%emt 0:00:02]} Kb6 {[%emt 0:00:01]} 91. Kb4 {[%emt 0:00:02]} Nb7 {[%emt 0:00:01]} 92. Bc6 $2 {[%emt 0:00:03]} (92. Kc3) 92... a5+ $2 {[%emt 0:00:01]} (92... Nc5 {Hoping for ...Nd3+.} 93. Kc4 Ne6 $1) 93. Kc4 $19 {[%emt 0:00:02]} Nc5 {[%emt 0:00:03]} 94. Kc3 $2 {[%emt 0:00:03]} (94. Be8) 94... Na6 {[%emt 0:00:01]} (94... a4 $142 95. Be8 Ka5) 95. Be8 {[%emt 0:00:03]} Kc5 {[%emt 0:00:03]} 96. Bd7 {[%emt 0:00:05]} Nc7 {[%emt 0:00:02]} 97. Be8 {[%emt 0:00:06]} Nb5+ (97... Nxe8 $142 98. Kd3 Nf6 99. Kd2 Kc4 100. Kc2 a4 101. Kb2 {[#]} Nxe4 $1 {[%mdl 512]} 102. Ka3 Nc5 103. Ka2 e4 104. Kb2 exf3 105. Kb1 f2 106. Kc1 f1=Q+ 107. Kc2 a3 108. Kd2 Nb3+ 109. Kc2 Qd3#) 0-1

[Event "4th Tata Steel India Blitz Women 2022"]
[Site "Kolkota"]
[Date "2022.12.03"]
[Round "6.5"]
[White "Muzychuk, Mariya"]
[Black "Kiolbasa, Oliwia"]
[Result "1-0"]
[ECO "C55"]
[WhiteElo "2528"]
[BlackElo "2406"]
[Annotator "TA"]
[PlyCount "159"]
[EventDate "2022.11.29"]
[EventType "tourn"]
[EventCountry "IND"]
[SourceTitle "playchess.com"]
[Source "ChessBase"]
[SourceQuality "1"]
[TimeControl "180+2"]

{[%evp 13,159,22,37,15,12,0,25,8,0,0,6,26,20,6,101,25,76,38,88,70,100,35,302,306,300,169,221,181,173,167,495,493,484,234,234,232,244,244,226,162,162,159,164,158,162,152,181,189,189,181,175,173,200,218,249,232,393,387,359,241,286,238,240,245,250,-356,175,170,232,0,218,200,210,198,239,0,508,416,409,410,551,550,632,635,622,606,628,654,1138,774,758,752,893,885,936,930,864,939,914,900,875,855,11824,29952,7501,1777,6236,5097,6119,2412,10052,1486,5539,5808,29967,29968,29960,10083,29971,29971,29973,29959,29976,2141,29979,29978,29978,29973,29971,29972,29976,29977,29981,29979,29980,29980,29983,29984,29984,29982,29982,29983,29984,29985,29986,29987,29988,29989]} 1. e4 {[%emt 0:00:01]} e5 {[%emt 0:00:01]} 2. Nf3 {[%emt 0:00:00]} Nc6 {[%emt 0:00:01]} 3. Bc4 {[%emt 0:00:01]} Nf6 {[%emt 0:00:02]} 4. d3 {[%emt 0:00:00]} Be7 {[%emt 0:00:02]} 5. O-O {[%emt 0:00:01]} O-O {[%emt 0:00:03]} 6. a4 {[%emt 0:00:01]} d5 {[%emt 0:00:20]} 7. exd5 {[%emt 0:00:01]} Nxd5 {[%emt 0:00:01]} 8. Re1 $1 {[%emt 0:00:04] The main line 8.Re1 scores better than 8.h3. C55: Two Knights: 4 d3, 4 d4 exd4 5 e5 and Max Lange Attack.} Bg4 {[%emt 0:00:07]} 9. h3 {[%emt 0:00:11]} Bh5 {[%emt 0:00:01]} 10. g4 {[%emt 0:00:44] White has an edge.} Bg6 {[%emt 0:00:01]} 11. Nxe5 {[%emt 0:00:00]} Nxe5 {[%emt 0:00:08]} 12. Rxe5 {[%emt 0:00:02]} Nb6 {[%emt 0:00:26] [#] And now ...Nxc4 would win.} 13. Bb3 {[%emt 0:00:06]} Bd6 {[%emt 0:00:02]} (13... Kh8 $11 {keeps the balance.}) 14. Re1 {[%emt 0:00:06]} (14. Bg5 $16 Qb8 15. Re1) 14... Qh4 {[%emt 0:00:16]} (14... Kh8 $1 $11) 15. Qf3 {[%emt 0:00:00] [#]} Nd7 $146 {[%emt 0:00:11]} (15... Kh8 $14) ({Predecessor:} 15... Kh8 16. Bf4 Qf6 17. h4 h5 18. gxh5 Bh7 19. a5 Nd7 20. Ra4 Nc5 21. Qg4 Nxa4 22. Bxd6 Qxd6 23. Qxa4 {0-1 (49) Breznik,K (2211)-Markun,B (2268) Slovenia 2018}) 16. Nc3 $36 {[%emt 0:00:07][%mdl 2048] White fights for an advantage.} (16. Qxb7 $6 Nc5 17. Qg2 (17. Qf3 Nxb3 18. cxb3 f5 $11) 17... Nxb3 18. cxb3 f5 $11) 16... Rae8 {[%emt 0:00:22]} 17. Ne4 {[%emt 0:00:14]} (17. Rxe8 $16 Rxe8 18. Kg2 (18. Qxb7 $2 Qxh3 19. Be3 Bh2+ 20. Kh1 Bf4+ 21. Kg1 Qh2+ 22. Kf1 Bxe3 $19)) 17... Nc5 $2 {[%emt 0:00:32][%mdl 8192]} (17... h6 $14) 18. Bg5 $18 {[%emt 0:00:40]} Bxe4 {[%emt 0:00:04]} 19. Qe3 {[%emt 0:00:00]} (19. Rxe4 $142 Qxg5 20. Rxe8 Nxb3 21. Rxf8+ Kxf8 22. cxb3) 19... Bf4 {[%emt 0:00:28]} (19... Bd5 {was necessary.} 20. Bxh4 Rxe3 21. Rxe3 Nxb3 22. cxb3 f6) 20. Qxf4 {Chess con chili.} Qxh3 {[%emt 0:00:02][%csl Ge4][%cal Rh3g2]} 21. dxe4 {[%emt 0:00:18]} h6 $2 {[%emt 0:00:04]} (21... Nxb3 22. cxb3 h6) 22. Re3 {[%emt 0:00:05]} (22. Qxc7 Qxg4+ 23. Qg3 Qxg3+ 24. fxg3 Nxb3 25. cxb3 hxg5 $11) 22... hxg5 {[%emt 0:00:02]} 23. Qxf7+ {[%emt 0:00:29]} (23. Qxc7 Qxg4+ 24. Rg3 Qc8 25. Qxc8 Rxc8 $11) (23. Qxg5 Nxe4 24. Qf4 Qh7 $18) (23. Qf5 $142 Qh4 24. Qxc5) 23... Rxf7 {[%emt 0:00:06]} 24. Bxf7+ {[%emt 0:00:01]} (24. Rxh3 Nxb3 25. Rxb3 Rxe4 $11) 24... Kxf7 {[%emt 0:00:01]} 25. Rxh3 {[%emt 0:00:01] aiming for Rc3.} Rxe4 {[%emt 0:00:05][%mdl 4096] Endgame KRR-KRN} 26. Rc3 {[%emt 0:00:11]} Rxg4+ {[%emt 0:00:07]} 27. Kf1 {[%emt 0:00:01]} Ne6 {[%emt 0:00:02]} 28. b3 {[%emt 0:00:06]} Rh4 {[%emt 0:00:02]} 29. Ke2 {[%emt 0:00:15]} Nf4+ {[%emt 0:00:03]} 30. Kd2 {[%emt 0:00:01]} c6 {[%emt 0:00:05]} 31. Re1 {[%emt 0:00:02]} Rh2 {[%emt 0:00:02]} 32. Rf3 {[%emt 0:00:03]} Kf6 {[%emt 0:00:06]} 33. Re8 {[%emt 0:00:01]} (33. Rg1 Kf5 $16) 33... Kf5 {[%emt 0:00:07]} 34. Rf8+ {[%emt 0:00:01]} Kg4 $2 {[%emt 0:00:03]} (34... Ke6 {is a better defense.} 35. Rb8 b6) 35. Rg3+ {[%emt 0:00:01]} Kh4 {[%emt 0:00:03]} 36. Rh8+ {[%emt 0:00:01]} Nh5 {[%emt 0:00:01]} 37. Ke2 {[%emt 0:00:04] Strongly threatening Kf3.} g4 {[%emt 0:00:04]} 38. Re3 {[%emt 0:00:03]} g6 {[%emt 0:00:02]} 39. Re7 $4 {[%emt 0:00:03][%mdl 8192]} (39. Ke1 $18) 39... Kg5 $4 {[%emt 0:00:01][%mdl 8192]} (39... g3 $19 {and all is fine.} 40. Kf1 (40. Rxb7 $2 g2 $19) (40. Re4+ $2 Kg5 $19) 40... Rxf2+ 41. Kg1 Rxc2) 40. Ke3 {[%emt 0:00:09]} (40. Rxb7 $2 {too greedy.} Nf4+ 41. Ke1 Rxh8 $19) 40... Rh1 {[%emt 0:00:02]} (40... Rh3+ $142 41. Kd2 Rh2) 41. Rxb7 $2 {[%emt 0:00:03]} ({Better is} 41. Rhh7 $18) 41... Re1+ $2 {[%emt 0:00:01]} (41... Rh3+ $11 42. Kd4 Rf3) 42. Kd2 {[%emt 0:00:00]} Rf1 43. Ke2 ({Inferior is} 43. Rxa7 Rxf2+ 44. Ke3 g3 $15) 43... Rc1 {[%emt 0:00:02]} 44. Kd3 {[%emt 0:00:01]} (44. Rxa7 $18 Rxc2+ 45. Ke1) 44... Nf4+ $2 {[%emt 0:00:05][%mdl 8192]} (44... Rf1 $1 $11 {and Black has nothing to worry.}) 45. Kc3 {[%emt 0:00:03]} Rf1 {[%emt 0:00:02]} 46. Rh2 {[%emt 0:00:01]} ({Less strong is} 46. Rxa7 Rxf2 47. Ra5+ Nd5+ 48. Kb2 g3 $14) 46... Nd5+ {[%emt 0:00:02]} 47. Kd2 {[%emt 0:00:01]} Nf6 {[%emt 0:00:02]} 48. Rxa7 {[%emt 0:00:02]} Ne4+ {[%emt 0:00:01]} 49. Ke2 {[%emt 0:00:00]} Rc1 {[%emt 0:00:01]} 50. Kd3 {[%emt 0:00:01]} Nc5+ {[%emt 0:00:04]} 51. Kd4 {[%emt 0:00:00]} Ne6+ {[%emt 0:00:01]} 52. Kc3 {[%emt 0:00:04]} Nf4 {[%emt 0:00:00]} 53. a5 {[%emt 0:00:02][%cal Ba4a5,Ba5a6][%mdl 32]} Re1 {[%emt 0:00:05]} 54. a6 {[%emt 0:00:01]} Nd5+ {[%emt 0:00:01]} 55. Kd2 {[%emt 0:00:02]} Ra1 {[%emt 0:00:01]} 56. Rhh7 {[%emt 0:00:11]} Nb4 {[%emt 0:00:02]} 57. Ra8 {[%emt 0:00:02] Black must now prevent a7.} Rxa6 {[%emt 0:00:03]} 58. Rxa6 {[%emt 0:00:01]} Nxa6 {[%emt 0:00:01] KR-KN} 59. Ke3 {[%emt 0:00:02]} (59. Ra7 $142 Nb4 60. Rc7) 59... Nb4 {[%emt 0:00:03]} 60. c4 {[%emt 0:00:02]} Nc2+ {[%emt 0:00:02]} 61. Kd3 {[%emt 0:00:00]} Ne1+ {[%emt 0:00:01]} 62. Ke2 {[%emt 0:00:00]} (62. Kd2 $142 Nf3+ 63. Kd3) 62... Nf3 {[%emt 0:00:02]} 63. Ke3 {[%emt 0:00:01] White threatens Rc7 and mate.} Ne5 {[%emt 0:00:04]} 64. Rc7 {[%emt 0:00:04]} Kf5 {[%emt 0:00:01]} 65. Rc8 {[%emt 0:00:02]} g5 {[%emt 0:00:02]} 66. Rf8+ {[%emt 0:00:02]} Ke6 {[%emt 0:00:02]} 67. Ke4 {[%emt 0:00:01]} Nf3 {[%emt 0:00:01]} 68. b4 {[%emt 0:00:03]} (68. Rxf3 $142 gxf3 69. b4 Kf6 70. Kxf3 Ke7 71. Kg4 Kd6 72. Kxg5 Ke5 73. f4+ Ke6 74. f5+ Ke5 75. f6) 68... Kd6 {[%emt 0:00:03]} 69. c5+ {[%emt 0:00:03] White mates.} Ke6 {[%emt 0:00:01]} 70. Rc8 {[%emt 0:00:01]} Kd7 {[%emt 0:00:02]} 71. Rg8 {[%emt 0:00:02]} Nd2+ {[%emt 0:00:03]} 72. Kf5 {[%emt 0:00:02]} Nc4 {[%emt 0:00:03]} 73. Rg7+ {[%emt 0:00:01]} Kd8 {[%emt 0:00:02]} 74. Kxg4 {[%emt 0:00:02]} Na3 {[%emt 0:00:02]} 75. Kxg5 {[%emt 0:00:03]} Nc2 {[%emt 0:00:00]} 76. Rb7 {[%emt 0:00:01]} Kc8 {[%emt 0:00:01]} 77. Rb6 {[%emt 0:00:01]} Kc7 {[%emt 0:00:01]} 78. f4 {[%emt 0:00:02][%cal Bf2f4,Bf4f5,Bf5f6][%mdl 32]} Ne3 {[%emt 0:00:02]} 79. f5 {[%emt 0:00:03]} Nd5 {[%emt 0:00:04] [#]} 80. f6 $1 {[%emt 0:00:00] Weighted Error Value: White=0.55/Black=0.91} 1-0

[Event "4th Tata Steel India Blitz Women 2022"]
[Site "Kolkota"]
[Date "2022.12.03"]
[Round "7.1"]
[White "Harika, Dronavalli"]
[Black "Muzychuk, Anna"]
[Result "0-1"]
[ECO "A21"]
[WhiteElo "2507"]
[BlackElo "2525"]
[Annotator "TA"]
[PlyCount "50"]
[EventDate "2022.11.29"]
[EventType "tourn"]
[EventCountry "IND"]
[SourceTitle "playchess.com"]
[Source "ChessBase"]
[SourceQuality "1"]
[TimeControl "180+2"]

{[%evp 9,50,23,16,17,24,7,0,-8,0,3,2,0,0,0,23,35,24,21,31,27,36,25,26,-131,-100,-109,-102,-117,-112,-189,-99,-109,-118,-118,-81,-93,-87,-199,-209,-1162,-1122,-1135,-1081]} 1. c4 {[%emt 0:00:01]} e5 {[%emt 0:00:06][%cal Be7e5,Be5e4][%mdl 32]} 2. Nc3 {[%emt 0:00:04]} d6 {[%emt 0:00:02]} 3. Nf3 {[%emt 0:00:05]} f5 {[%emt 0:00:02]} 4. g3 {[%emt 0:00:07]} Nf6 {[%emt 0:00:04]} 5. d4 {[%emt 0:00:02]} e4 {[%emt 0:00:06]} 6. Nh4 {[%emt 0:00:01] A21: English Opening: 1...e5 2 Nc3.} g6 {[%emt 0:00:16]} 7. Bg2 {[%emt 0:00:03]} Bg7 {[%emt 0:00:01]} 8. Bg5 {[%emt 0:00:41] [#] The position is equal.} c6 $146 {[%emt 0:00:31]} ({Predecessor:} 8... O-O 9. Qd2 Be6 10. d5 Bf7 11. O-O Nbd7 12. f3 exf3 13. exf3 Ne5 14. b3 {½-½ (14) Lalic,B (2520)-Iordachescu,V (2594) Castellaneta 2000}) 9. f3 {[%emt 0:00:13]} exf3 {[%emt 0:00:14]} 10. Bxf3 {[%emt 0:00:12]} O-O {[%emt 0:00:05]} 11. Qd2 {[%emt 0:00:12]} Qb6 {[%emt 0:00:23]} 12. O-O-O {[%emt 0:00:20]} Be6 {[%emt 0:00:08]} 13. d5 {[%emt 0:00:05]} Bf7 {[%emt 0:00:28]} 14. Bh6 $1 {[%emt 0:00:10]} Nbd7 {[%emt 0:00:17]} 15. Bxg7 {[%emt 0:00:06]} Kxg7 {[%emt 0:00:01]} 16. e4 $2 {[%emt 0:00:29]} (16. Qg5 $11) 16... fxe4 {[%emt 0:00:09]} 17. Nxe4 {[%emt 0:00:04]} cxd5 {[%emt 0:00:03]} 18. Nxf6 {[%emt 0:00:06]} Nxf6 {[%emt 0:00:01]} 19. Bxd5 {[%emt 0:00:03]} (19. Qg5 $17) 19... Rac8 {[%emt 0:00:10]} (19... Bxd5 $19 20. cxd5 Ng4 21. Qd4+ Qxd4 22. Rxd4 Rac8+ 23. Kb1 Nxh2 $1) 20. Kb1 {[%emt 0:00:05]} Bxd5 {[%emt 0:00:10]} 21. cxd5 {[%emt 0:00:01]} Rc4 {[%emt 0:00:04] And now ...Ne4 would win.} 22. Qd3 {[%emt 0:00:18] Against Ne4} Rfc8 $36 {[%emt 0:00:07][%mdl 2048] White must now prevent ...Ne4. White is under strong pressure. Black is more active.} 23. Rhe1 {[%emt 0:00:02] [#] Inhibits Ne4.} (23. Nf3 $17 {is a better defense.}) 23... Rc2 $1 $19 {[%emt 0:00:06][%csl Gc2][%cal Rb6b2]} 24. Qd4 {[%emt 0:00:12] [#]} (24. Qb3) 24... Rc1+ $3 {[%emt 0:00:03][%mdl 512]} 25. Rxc1 {[%emt 0:00:01]} Rxc1+ {[%emt 0:00:01] Weighted Error Value: White=0.58/Black=0.11 (very precise)} ({Not} 25... Qxd4 26. Rxc8 Nxd5 27. Ka1 $17) 0-1

[Event "4th Tata Steel India Blitz Women 2022"]
[Site "Kolkota"]
[Date "2022.12.03"]
[Round "7.2"]
[White "Dzagnidze, Nana"]
[Black "Kulkarni Bhakti"]
[Result "1/2-1/2"]
[ECO "D30"]
[WhiteElo "2517"]
[BlackElo "2359"]
[Annotator "TA"]
[PlyCount "98"]
[EventDate "2022.11.29"]
[EventType "tourn"]
[EventCountry "IND"]
[SourceTitle "playchess.com"]
[Source "ChessBase"]
[SourceQuality "1"]
[TimeControl "180+2"]

{[%evp 9,98,27,23,29,19,0,0,0,2,-24,20,34,66,57,108,111,358,111,104,100,103,94,193,179,183,190,212,211,251,195,221,190,191,187,188,176,196,196,205,190,194,192,195,192,192,196,192,26,24,0,58,58,58,58,65,-120,-121,-130,-53,-102,-87,-95,0,0,0,0,0,0,34,34,38,0,0,0,0,0,0,0,0,0,0,0,0,0,0,0,0,0,0,0,0]} 1. d4 {[%emt 0:00:02]} d5 {[%emt 0:00:09]} 2. c4 {[%emt 0:00:03]} e6 {[%emt 0:00:02]} 3. Nf3 {[%emt 0:00:02]} a6 {[%emt 0:00:14]} 4. Nbd2 {[%emt 0:00:23]} Nf6 {[%emt 0:00:11]} 5. g3 {[%emt 0:00:07]} c5 {[%emt 0:00:04]} 6. Bg2 {[%emt 0:00:44] D30: Queen's Gambit Declined: Systems without Nc3.} Nc6 {[%emt 0:00:14]} 7. dxc5 {[%emt 0:00:05]} Bxc5 {[%emt 0:00:05]} 8. O-O {[%emt 0:00:02]} O-O {[%emt 0:00:06] [#]} 9. b3 $146 {[%emt 0:00:11]} ({Predecessor:} 9. a3 a5 10. cxd5 exd5 11. Nb3 Bb6 12. Nbd4 Nxd4 13. Nxd4 Re8 14. Be3 Ng4 15. Bf4 Qf6 16. Nf3 d4 17. h3 Nh6 18. Qd2 Nf5 {1-0 (40) Socko,B (2618)-Heberla,B (2556) Tornelo INT 2021}) 9... dxc4 {[%emt 0:00:32]} 10. Nxc4 {[%emt 0:00:03]} Qxd1 {[%emt 0:00:04]} 11. Rxd1 {[%emt 0:00:02]} Ng4 {[%emt 0:00:04]} (11... a5 $14) 12. e3 $16 {[%emt 0:00:03]} b5 $2 {[%emt 0:00:03] [#]} (12... a5 $16) 13. Nd4 $2 {[%emt 0:00:20]} (13. Nce5 $1 $18 {[%mdl 512] and the rest is easy.}) 13... bxc4 {[%emt 0:00:27]} 14. Nxc6 {[%emt 0:00:05]} ({Don't play} 14. Bxc6 Rb8 $14) 14... Bb7 {[%emt 0:00:19]} 15. bxc4 {[%emt 0:00:16]} Kh8 {[%emt 0:00:24]} (15... Bxc6 $16 16. Bxc6 Rab8) 16. Rb1 $36 {[%emt 0:00:10][%mdl 2048] White has strong initiative.} Bxc6 {[%emt 0:00:03]} 17. Bxc6 {[%emt 0:00:02]} Ra7 {[%emt 0:00:09]} 18. Bb2 {[%emt 0:00:13] Against Ne5} Rc8 {[%emt 0:00:12]} 19. Bf3 {[%emt 0:00:07] Prevents h6. A strong pair of Bishops.} Nf6 {[%emt 0:00:05]} 20. Bc3 {[%emt 0:00:09]} h6 {[%emt 0:00:03]} 21. Kg2 {[%emt 0:00:07]} Be7 {[%emt 0:00:06]} 22. Bd4 {[%emt 0:00:09]} Rac7 {[%emt 0:00:01]} 23. Bb7 {[%emt 0:00:02][%cal Bf3b7,Bb7a6,Ba6b5][%mdl 32]} Rd8 {[%emt 0:00:06]} 24. Bxa6 {[%emt 0:00:04] Threatens to win with a4.} Ra8 {[%emt 0:00:01]} 25. Bb6 {[%emt 0:00:09]} Rd7 {[%emt 0:00:03] aiming for ...Rxd1.} 26. Bb5 {[%emt 0:00:06]} Rxd1 {[%emt 0:00:02]} 27. Rxd1 {[%emt 0:00:01]} Rxa2 {[%emt 0:00:01] [#]} 28. Rc1 $2 {[%emt 0:00:04]} (28. Kf3 $1 $18) 28... Ne4 $11 {[%emt 0:00:03]} 29. c5 {[%emt 0:00:05]} (29. Kg1 $5 {[%cal Rc4c5]}) 29... Rxf2+ {[%emt 0:00:02]} (29... Bxc5 $1 $11 30. Bxc5 Rxf2+ 31. Kg1 Rf5) 30. Kg1 $14 {[%emt 0:00:00]} Rb2 {[%emt 0:00:01] Against c6} 31. Bd3 {[%emt 0:00:01]} Nd2 {[%emt 0:00:03]} 32. Be2 $2 {[%emt 0:00:03] Inhibits Nf3+.} (32. Rc2 $14 {stays ahead.} Rxc2 33. Bxc2) 32... Nb3 $17 {[%emt 0:00:02][%csl LRc1,LRe2]} 33. Re1 {[%emt 0:00:02] Black must now prevent c6.} Rc2 {[%emt 0:00:01] Against c6} (33... Bxc5 $17 34. Bxc5 Nxc5) 34. Bd1 {[%emt 0:00:04]} (34. Rb1 $15 {feels stronger.} Rxe2 35. Rxb3) 34... Rc1 $1 {[%emt 0:00:01]} 35. Kf2 {[%emt 0:00:03]} Bxc5 {[%emt 0:00:01]} (35... Nxc5 $17 {Strongly threatening ...Nd3+.} 36. Be2 Ne4+ 37. Kf1 Rxe1+ 38. Kxe1 Bb4+ 39. Kf1 Bc5 40. Bxc5 Nxc5) 36. Bxb3 $11 {[%emt 0:00:01][%mdl 64] Discovered Attack} Rxe1 {[%emt 0:00:01]} 37. Bxc5 {[%emt 0:00:02]} Rb1 {[%emt 0:00:01]} 38. Ba4 {[%emt 0:00:01]} Rc1 {[%emt 0:00:02]} 39. Bd4 {[%emt 0:00:01]} f6 {[%emt 0:00:01]} 40. Bd7 {[%emt 0:00:02]} e5 {[%emt 0:00:01] The position is equal.} 41. Bb6 {[%emt 0:00:00]} Rb1 {[%emt 0:00:01]} 42. Bc5 {[%emt 0:00:01]} Rc1 {[%emt 0:00:01] And now ...Rc2+ would win.} 43. Bb4 {[%emt 0:00:02]} Rc2+ {[%emt 0:00:01]} 44. Kg1 {[%emt 0:00:01]} Re2 {[%emt 0:00:01]} 45. Bc5 {[%emt 0:00:01]} Rc2 {[%emt 0:00:01]} 46. Bb6 {[%emt 0:00:02]} Rb2 {[%emt 0:00:01]} 47. Bc5 {[%emt 0:00:01]} Rc2 {[%emt 0:00:01]} 48. Bb6 {[%emt 0:00:05]} Rb2 {[%emt 0:00:01]} 49. Bc5 {[%emt 0:00:03]} Rc2 {[%emt 0:00:01] Blacks defense is rewarded with a draw.   Weighted Error Value: White=0.25 (precise) /Black=0.23 (precise)} 1/2-1/2